bitfinex-derivatives/quotes_BTCF0:USTF0_20241008
["timestamp","ask_amount","ask_price","bid_price","bid_amount"]
[1728426679303,0.191334,62274.0,62273.0,0.009]
[1728426680714,0.552134,62274.0,62273.0,0.009]
[1728426681412,1.033894,62274.0,62273.0,0.009]
[1728426681611,1.033894,62274.0,62273.0,0.008]
[1728426681612,1.032894,62274.0,62273.0,0.008]
[1728426682002,1.032894,62274.0,62273.0,0.006]
[1728426682205,1.033894,62274.0,62273.0,0.002]
[1728426682705,1.033894,62274.0,62261.0,0.19]
[1728426682706,0.080346,62265.0,62261.0,0.19]
[1728426682905,0.190346,62265.0,62261.0,0.19]
[1728426683909,0.451134,62274.0,62267.0,0.080342]
[1728426683910,0.08034,62270.0,62267.0,0.080342]
[1728426684117,0.19034,62270.0,62268.0,0.19]
[1728426685216,0.19034,62270.0,62268.0,0.194]
[1728426685512,0.19134,62270.0,62268.0,0.199]
[1728426687602,0.19134,62270.0,62268.0,0.279342]
[1728426688110,0.111,62270.0,62269.0,0.1283283]
[1728426688707,0.111,62270.0,62269.0,0.5621]
[1728426689013,0.0112,62282.0,62269.0,1.08176]
[1728426689207,0.080329,62278.0,62276.0,0.04802048]
[1728426689406,0.200329,62278.0,62275.0,0.04802048]
[1728426690513,0.080331,62277.0,62275.0,0.04802048]
[1728426690715,0.200331,62277.0,62275.0,0.04802048]
[1728426691316,0.200331,62277.0,62276.0,0.04803592]
[1728426692113,0.202331,62277.0,62276.0,0.04803592]
[1728426692319,0.205331,62277.0,62276.0,0.04803592]
[1728426692726,0.206331,62277.0,62276.0,0.04803592]
[1728426693813,0.207331,62277.0,62276.0,0.04803592]
[1728426694721,0.080331,62276.0,62275.0,0.04803592]
[1728426694920,0.190331,62276.0,62275.0,0.04803592]
[1728426695227,0.11,62276.0,62273.0,0.04803592]
[1728426695425,0.080334,62274.0,62273.0,0.04803592]
[1728426695621,0.080334,62274.0,62272.0,0.04803592]
[1728426695622,0.080335,62273.0,62272.0,0.04803592]
[1728426695824,0.080337,62272.0,62271.0,0.04805876]
[1728426696121,0.190337,62272.0,62271.0,0.04805876]
[1728426697617,0.190337,62272.0,62271.0,0.04905876]
[1728426698221,1.272097,62272.0,62271.0,0.04905876]
[1728426698433,0.080348,62263.0,62262.0,0.04806053]
[1728426698620,0.080348,62263.0,62261.0,0.3608]
[1728426698621,0.080349,62262.0,62261.0,0.00092]
[1728426698919,0.080349,62262.0,62255.0,0.0571]
[1728426698920,0.1584,62262.0,62255.0,0.137458]
[1728426699125,0.080355,62258.0,62255.0,0.137458]
[1728426699328,0.200355,62258.0,62256.0,0.080357]
[1728426699524,0.12,62258.0,62257.0,0.080356]
[1728426699824,0.12,62258.0,62257.0,0.270356]
[1728426700030,0.200355,62258.0,62257.0,0.080356]
[1728426701422,0.201355,62258.0,62257.0,0.088356]
[1728426702229,0.202355,62258.0,62257.0,0.088356]
[1728426702824,0.202355,62258.0,62257.0,0.098356]
[1728426703923,0.202355,62258.0,62257.0,0.018]
[1728426705636,0.202355,62258.0,62257.0,0.208]
[1728426705934,0.122,62258.0,62257.0,0.208]
[1728426706123,0.122,62258.0,62257.0,0.288356]
[1728426706325,0.121,62258.0,62257.0,0.284356]
[1728426706630,0.122,62258.0,62257.0,0.284356]
[1728426706933,0.122,62258.0,62257.0,0.281356]
[1728426707821,0.121,62258.0,62257.0,0.280356]
[1728426708020,0.3608,62263.0,62262.0,0.080349]
[1728426708227,0.4608,62263.0,62262.0,0.270349]
[1728426709332,0.4608,62263.0,62262.0,0.271349]
[1728426710126,0.4608,62263.0,62262.0,0.328549]
[1728426710328,0.4608,62263.0,62262.0,0.39257631]
[1728426711530,0.4608,62263.0,62262.0,0.41131407]
[1728426711834,0.4608,62263.0,62262.0,0.39257631]
[1728426712039,0.4608,62263.0,62262.0,0.328549]
[1728426712232,0.4608,62263.0,62262.0,0.138549]
[1728426713937,0.541148,62263.0,62262.0,0.0582]
[1728426714642,0.541148,62263.0,62262.0,0.12222731]
[1728426715742,0.541148,62263.0,62262.0,0.0582]
[1728426716144,0.541148,62263.0,62262.0,0.12222731]
[1728426716641,0.541148,62263.0,62262.0,0.0582]
[1728426717941,0.541148,62263.0,62262.0,0.2482]
[1728426721151,0.541148,62263.0,62262.0,0.191]
[1728426721947,0.180348,62263.0,62262.0,0.191]
[1728426722344,0.180348,62263.0,62262.0,0.271349]
[1728426722646,0.180348,62263.0,62262.0,0.001]
[1728426722647,0.1,62263.0,62262.0,0.001]
[1728426722845,0.370348,62263.0,62262.0,0.001]
[1728426723040,0.180348,62263.0,62262.0,0.001]
[1728426724046,0.370348,62263.0,62262.0,0.001]
[1728426726136,0.370348,62263.0,62262.0,0.06502731]
[1728426726543,0.731148,62263.0,62262.0,0.06502731]
[1728426731844,0.731148,62263.0,62262.0,0.001]
[1728426733947,0.541148,62263.0,62262.0,0.001]
[1728426734451,0.4608,62263.0,62262.0,0.001]
[1728426734651,0.1,62263.0,62262.0,0.442149]
[1728426734953,0.1,62263.0,62262.0,0.501349]
[1728426735756,0.1,62263.0,62262.0,0.140549]
[1728426736255,0.1,62263.0,62262.0,0.20479045]
[1728426736452,0.1,62263.0,62262.0,0.501349]
[1728426736852,0.1,62263.0,62262.0,0.68446533]
[1728426737451,0.1,62263.0,62262.0,0.501349]
[1728426737956,0.81088,62281.0,62272.0,0.19]
[1728426737957,0.084035,62273.0,62272.0,0.19]
[1728426738153,0.200335,62273.0,62271.0,0.080337]
[1728426738556,0.200335,62273.0,62272.0,0.19]
[1728426739152,0.210335,62273.0,62272.0,0.271337]
[1728426739461,0.219335,62273.0,62272.0,0.271337]
[1728426740953,0.219335,62273.0,62272.0,0.081337]
[1728426741155,0.219335,62273.0,62272.0,0.06516569]
[1728426741346,0.219335,62273.0,62272.0,0.001]
[1728426741347,0.210335,62273.0,62272.0,0.001]
[1728426741547,0.220335,62273.0,62272.0,0.002]
[1728426741855,0.220335,62273.0,62272.0,0.06616666]
[1728426742157,0.220335,62273.0,62272.0,0.002]
[1728426742361,0.220335,62273.0,62272.0,0.082337]
[1728426742849,0.220335,62273.0,62272.0,0.002]
[1728426743046,0.220335,62273.0,62272.0,0.06615249]
[1728426743250,0.220335,62273.0,62272.0,0.002]
[1728426743452,0.220335,62273.0,62272.0,0.06615249]
[1728426743660,0.220335,62273.0,62272.0,0.002]
[1728426750359,0.277535,62273.0,62272.0,0.002]
[1728426751054,0.220335,62273.0,62272.0,0.002]
[1728426754967,0.581135,62273.0,62272.0,0.002]
[1728426758568,0.220335,62273.0,62272.0,0.002]
[1728426758766,0.581135,62273.0,62272.0,0.002]
[1728426759171,0.220335,62273.0,62272.0,0.002]
[1728426759573,0.581135,62273.0,62272.0,0.002]
[1728426760478,0.220335,62273.0,62272.0,0.002]
[1728426760970,0.581135,62273.0,62272.0,0.002]
[1728426762468,0.701135,62273.0,62272.0,0.002]
[1728426763376,0.581135,62273.0,62272.0,0.002]
[1728426763870,0.581135,62273.0,62272.0,0.06615249]
[1728426764265,0.581135,62273.0,62272.0,0.26648949]
[1728426764573,0.581135,62273.0,62272.0,1.74786749]
[1728426764574,0.00961046,62273.0,62272.0,1.74786749]
[1728426764767,0.0037,62283.0,62272.0,1.81514645]
[1728426764970,0.11,62283.0,62282.0,0.28064169]
[1728426765169,0.0037,62293.0,62290.0,0.080313]
[1728426765373,0.1,62293.0,62292.0,0.12]
[1728426766078,0.180309,62293.0,62292.0,0.12]
[1728426766381,0.1,62293.0,62290.0,0.06424812]
[1728426766573,0.1,62293.0,62288.0,0.0581]
[1728426766574,0.080315,62289.0,62288.0,0.06424812]
[1728426766783,0.190315,62289.0,62287.0,0.06424812]
[1728426767479,0.190315,62289.0,62286.0,0.14456612]
[1728426767679,0.190315,62289.0,62286.0,0.16285126]
[1728426768182,0.198315,62289.0,62287.0,0.001]
[1728426768379,0.198315,62289.0,62287.0,0.002]
[1728426768380,0.199315,62289.0,62287.0,0.002]
[1728426768978,0.199315,62289.0,62287.0,0.001]
[1728426769979,0.198315,62289.0,62286.0,0.081318]
[1728426770285,0.208315,62289.0,62286.0,0.082318]
[1728426770580,0.208315,62289.0,62287.0,0.001]
[1728426770986,0.199315,62289.0,62287.0,0.001]
[1728426771183,0.206315,62289.0,62287.0,0.001]
[1728426771378,0.080316,62288.0,62287.0,0.001]
[1728426771682,0.190316,62288.0,62287.0,0.002]
[1728426773182,0.200316,62288.0,62287.0,0.002]
[1728426774285,0.561116,62288.0,62287.0,0.002]
[1728426776986,0.200316,62288.0,62287.0,0.002]
[1728426781190,0.200316,62288.0,62273.0,0.06424812]
[1728426781191,0.080325,62281.0,62273.0,0.06424812]
[1728426781391,0.080325,62281.0,62263.0,0.5508]
[1728426781392,0.080335,62273.0,62272.0,0.0037]
[1728426781689,0.080335,62273.0,62265.0,0.0593]
[1728426781690,0.080338,62271.0,62265.0,0.0593]
[1728426781889,0.200338,62271.0,62266.0,0.01884332]
[1728426782387,0.200338,62271.0,62266.0,0.09918732]
[1728426782388,0.080339,62270.0,62266.0,0.09918732]
[1728426782693,0.200339,62270.0,62266.0,0.09918732]
[1728426783395,0.200339,62270.0,62269.0,0.01140832]
[1728426785895,0.200339,62270.0,62269.0,0.00740832]
[1728426786193,0.200339,62270.0,62269.0,0.01140832]
[1728426788784,0.200339,62270.0,62269.0,0.00740832]
[1728426788989,0.200339,62270.0,62269.0,0.01140832]
[1728426789188,0.12,62270.0,62269.0,0.01140832]
[1728426789384,0.12,62270.0,62269.0,0.09174832]
[1728426791793,0.12,62270.0,62269.0,0.45254832]
[1728426791983,0.0037,62280.0,62279.0,0.080328]
[1728426792188,0.03,62280.0,62279.0,0.631128]
[1728426792698,0.03,62280.0,62279.0,0.841128]
[1728426792997,0.03,62280.0,62279.0,0.631128]
[1728426793296,0.036,62280.0,62279.0,0.632128]
[1728426795192,0.042,62280.0,62279.0,0.65047885]
[1728426797806,0.042,62280.0,62279.0,0.28967885]
[1728426800601,0.012,62280.0,62279.0,0.28967885]
[1728426801604,0.012,62280.0,62279.0,0.35392697]
[1728426802003,0.012,62280.0,62279.0,0.28967885]
[1728426802204,0.062,62280.0,62279.0,0.35392697]
[1728426802401,0.062,62280.0,62279.0,0.28967885]
[1728426805195,0.062,62280.0,62279.0,0.35392697]
[1728426805507,0.012,62280.0,62279.0,0.28967885]
[1728426805696,0.012,62280.0,62279.0,1.37135885]
[1728426807911,0.0037,62289.0,62288.0,0.080316]
[1728426808115,0.00240853,62293.0,62292.0,0.080311]
[1728426808311,0.00240853,62293.0,62292.0,0.270311]
[1728426808312,0.12240853,62293.0,62292.0,0.270311]
[1728426809108,0.080314,62290.0,62289.0,0.19]
[1728426809600,0.080314,62290.0,62288.0,0.3618]
[1728426810201,0.080314,62290.0,62289.0,0.19]
[1728426810607,0.180314,62290.0,62289.0,0.19]
[1728426811002,0.1,62290.0,62289.0,0.193]
[1728426811902,0.1,62290.0,62289.0,0.195]
[1728426812703,0.1,62290.0,62289.0,0.192]
[1728426812914,0.1,62290.0,62289.0,0.195]
[1728426813304,0.1,62290.0,62289.0,0.275315]
[1728426813504,0.1,62290.0,62289.0,0.195]
[1728426813814,0.180313,62290.0,62289.0,0.195]
[1728426814919,0.180313,62290.0,62289.0,0.193]
[1728426815106,0.180313,62290.0,62289.0,0.196]
[1728426816011,0.180313,62290.0,62289.0,0.193]
[1728426816219,0.180313,62290.0,62289.0,0.196]
[1728426817847,0.180313,62290.0,62289.0,0.006]
[1728426818312,0.180313,62290.0,62289.0,0.005]
[1728426824034,0.080317,62287.0,62286.0,0.01809087]
[1728426824215,0.11,62287.0,62284.0,0.36164]
[1728426824416,0.08032,62285.0,62284.0,0.3608]
[1728426824716,0.20032,62285.0,62284.0,0.37910378]
[1728426825024,0.20032,62285.0,62284.0,0.56910378]
[1728426825928,0.20132,62285.0,62284.0,0.57710378]
[1728426827320,0.20232,62285.0,62284.0,0.58410378]
[1728426830719,0.20232,62285.0,62284.0,0.66441394]
[1728426831718,0.20232,62285.0,62284.0,0.58410378]
[1728426832317,0.20232,62285.0,62284.0,0.66441394]
[1728426833332,0.20232,62285.0,62284.0,0.76674968]
[1728426833532,0.20232,62285.0,62284.0,0.66441394]
[1728426834334,0.20232,62285.0,62284.0,0.76675375]
[1728426834629,0.20232,62285.0,62284.0,0.69675375]
[1728426835634,0.20232,62285.0,62284.0,0.33595375]
[1728426836336,0.20232,62285.0,62284.0,0.23361394]
[1728426836521,0.20232,62285.0,62284.0,0.15330378]
[1728426842519,0.20232,62285.0,62284.0,0.23361394]
[1728426843139,0.20232,62285.0,62284.0,0.15330378]
[1728426843724,0.20232,62285.0,62284.0,0.23361394]
[1728426844537,0.20232,62285.0,62284.0,0.3359812]
[1728426844931,0.20232,62285.0,62284.0,0.21754281]
[1728426845640,0.20232,62285.0,62284.0,0.15330378]
[1728426845841,0.20232,62285.0,62284.0,0.26600378]
[1728426845842,0.122,62285.0,62284.0,0.26600378]
[1728426846738,0.080299,62302.0,62284.0,0.29111743]
[1728426846951,0.190304,62297.0,62296.0,0.4808]
[1728426847537,0.190304,62297.0,62296.0,0.16818169]
[1728426847850,0.190304,62297.0,62296.0,0.12]
[1728426848242,0.190304,62297.0,62296.0,0.16816818]
[1728426848742,0.190304,62297.0,62296.0,0.12]
[1728426849531,0.080299,62301.0,62296.0,0.52896818]
[1728426849742,0.004,62297.0,62296.0,0.4204]
[1728426849939,0.004,62297.0,62296.0,0.680306]
[1728426850236,0.009,62297.0,62296.0,0.70541436]
[1728426850432,0.009,62297.0,62296.0,0.73052206]
[1728426851427,0.005,62297.0,62296.0,0.73052206]
[1728426852034,0.005,62297.0,62296.0,0.85073297]
[1728426852235,0.009,62297.0,62296.0,0.85075004]
[1728426852437,0.009,62297.0,62296.0,0.84044404]
[1728426852636,0.009,62297.0,62296.0,0.92058418]
[1728426852829,0.009,62297.0,62296.0,0.84044404]
[1728426853345,0.009,62297.0,62296.0,0.860967]
[1728426853545,0.009,62297.0,62296.0,0.75930009]
[1728426853843,0.199304,62297.0,62296.0,0.10776899]
[1728426854033,0.199304,62297.0,62296.0,0.23366943]
[1728426854340,0.199304,62297.0,62296.0,0.28174581]
[1728426854536,0.199304,62297.0,62296.0,0.23366943]
[1728426854836,0.199304,62297.0,62296.0,0.02510836]
[1728426855243,0.199304,62297.0,62291.0,0.04807638]
[1728426855431,0.199304,62297.0,62289.0,0.04807638]
[1728426855631,0.3608,62294.0,62288.0,0.04807638]
[1728426855849,0.080316,62288.0,62287.0,0.04807638]
[1728426856046,0.190316,62288.0,62287.0,0.04808239]
[1728426857137,0.190316,62288.0,62287.0,0.05208239]
[1728426858339,0.190316,62288.0,62287.0,0.05708239]
[1728426859744,0.551116,62288.0,62287.0,0.009]
[1728426860645,0.741116,62288.0,62287.0,0.009]
[1728426861036,0.741116,62288.0,62282.0,0.0037]
[1728426861037,0.080322,62283.0,62282.0,0.0037]
[1728426861238,0.080329,62278.0,62277.0,0.0037]
[1728426861437,0.08033,62277.0,62276.0,0.3608]
[1728426863246,0.08033,62277.0,62276.0,0.3888]
[1728426864250,0.08033,62277.0,62276.0,0.028]
[1728426864446,0.19033,62277.0,62276.0,0.028]
[1728426866854,0.08034,62269.0,62268.0,0.0037]
[1728426867155,0.080343,62267.0,62266.0,0.00240852]
[1728426867345,0.180343,62267.0,62266.0,0.00240852]
[1728426869052,0.180343,62267.0,62266.0,0.00640852]
[1728426869255,0.180343,62267.0,62266.0,0.00940852]
[1728426874054,0.1,62267.0,62266.0,0.45055252]
[1728426876460,0.0565,62276.0,62269.0,0.08034]
[1728426876461,0.080334,62275.0,62269.0,0.08034]
[1728426876657,0.080334,62274.0,62273.0,0.19]
[1728426876856,0.190334,62274.0,62273.0,0.19]
[1728426877057,0.080338,62271.0,62269.0,0.19]
[1728426877261,0.190338,62271.0,62269.0,0.19]
[1728426877866,0.190338,62271.0,62269.0,0.191]
[1728426879058,0.190338,62271.0,62269.0,0.197]
[1728426879059,0.191338,62271.0,62269.0,0.197]
[1728426879463,0.192338,62271.0,62269.0,0.203]
[1728426879962,0.112,62271.0,62269.0,0.203]
[1728426880168,0.112,62271.0,62270.0,0.137339]
[1728426881164,0.112,62271.0,62270.0,0.142339]
[1728426881165,0.11,62271.0,62270.0,0.142339]
[1728426881465,0.111,62271.0,62270.0,0.142339]
[1728426881860,0.111,62271.0,62270.0,0.148339]
[1728426882956,0.111,62271.0,62270.0,0.150339]
[1728426883870,0.112,62271.0,62270.0,0.152339]
[1728426884569,0.112,62271.0,62270.0,0.150339]
[1728426885071,0.112,62271.0,62270.0,0.013]
[1728426885265,0.192338,62271.0,62270.0,0.015]
[1728426885774,0.191338,62271.0,62270.0,0.013]
[1728426885961,0.191338,62271.0,62270.0,0.011]
[1728426887166,0.191338,62271.0,62270.0,0.02453768]
[1728426887371,0.192338,62271.0,62270.0,0.012]
[1728426887972,0.190338,62271.0,62270.0,0.012]
[1728426888176,0.191338,62271.0,62270.0,0.012]
[1728426888673,0.191338,62271.0,62270.0,0.011]
[1728426889071,0.190338,62271.0,62268.0,0.10410138]
[1728426889273,0.190338,62271.0,62270.0,0.009]
[1728426889662,0.190338,62271.0,62270.0,0.004]
[1728426889863,0.190338,62271.0,62270.0,0.009]
[1728426890379,0.190338,62271.0,62270.0,0.08912296]
[1728426891175,0.191338,62271.0,62270.0,0.18805039]
[1728426892168,0.190338,62271.0,62270.0,0.19206134]
[1728426893471,0.190338,62271.0,62270.0,0.008]
[1728426894066,0.190338,62271.0,62270.0,0.004]
[1728426894271,0.190338,62271.0,62270.0,0.007]
[1728426894673,0.551138,62271.0,62270.0,0.007]
[1728426894882,0.552138,62271.0,62267.0,0.08012296]
[1728426895081,0.552138,62271.0,62270.0,0.0682295]
[1728426895874,0.552138,62271.0,62270.0,0.0652295]
[1728426896082,0.552138,62271.0,62270.0,0.001]
[1728426896581,0.080342,62268.0,62267.0,0.08012296]
[1728426896779,0.190342,62268.0,62267.0,0.08212296]
[1728426897180,0.190342,62268.0,62267.0,0.05017387]
[1728426898275,0.190342,62268.0,62267.0,0.005]
[1728426898475,0.190342,62268.0,62267.0,0.05317619]
[1728426899175,0.190342,62268.0,62267.0,0.005]
[1728426901781,0.190342,62268.0,62267.0,0.06923182]
[1728426902084,0.190342,62268.0,62267.0,0.005]
[1728426903577,0.190342,62268.0,62267.0,0.06924772]
[1728426904579,0.190342,62268.0,62267.0,0.005]
[1728426905587,0.190342,62268.0,62267.0,0.10814267]
[1728426911990,0.190342,62268.0,62267.0,0.10821573]
[1728426912286,0.190342,62268.0,62267.0,0.005]
[1728426914086,0.190342,62268.0,62267.0,0.0531912]
[1728426914692,0.190342,62268.0,62267.0,0.005]
[1728426915290,0.190342,62268.0,62263.0,0.19088595]
[1728426915291,1.392142,62268.0,62263.0,0.25514087]
[1728426915497,0.080352,62260.0,62259.0,0.0037]
[1728426915788,0.080352,62260.0,62248.0,0.08277665]
[1728426915789,0.080358,62256.0,62248.0,0.00240965]
[1728426915985,0.200366,62249.0,62248.0,0.00240965]
[1728426916297,0.310366,62249.0,62248.0,0.00240965]
[1728426917488,0.08038,62238.0,62237.0,0.12]
[1728426917684,0.19038,62238.0,62237.0,0.12]
[1728426918385,0.11,62238.0,62235.0,0.43391285]
[1728426918581,0.080383,62236.0,62235.0,0.24391285]
[1728426919093,0.180383,62236.0,62235.0,0.18781285]
[1728426919301,0.180383,62236.0,62235.0,0.37133583]
[1728426919491,0.180383,62236.0,62235.0,0.18781285]
[1728426919684,0.181383,62236.0,62235.0,0.19881285]
[1728426920186,0.181383,62236.0,62235.0,0.19981285]
[1728426920187,0.182383,62236.0,62235.0,0.19981285]
[1728426920490,0.543183,62236.0,62235.0,0.19981285]
[1728426922988,0.543183,62236.0,62222.0,0.56612578]
[1728426923190,0.19,62233.0,62222.0,0.5508]
[1728426923395,0.29,62233.0,62222.0,0.5508]
[1728426923998,0.080392,62229.0,62225.0,0.080397]
[1728426924198,0.180392,62229.0,62225.0,0.080397]
[1728426925198,0.181392,62229.0,62225.0,0.084397]
[1728426926296,0.182392,62229.0,62225.0,0.084397]
[1728426926784,0.543192,62229.0,62225.0,0.084397]
[1728426927695,0.543192,62229.0,62225.0,0.080397]
[1728426928489,0.543192,62229.0,62226.0,0.19]
[1728426928696,0.102,62229.0,62227.0,0.441194]
[1728426928897,0.05373679,62229.0,62227.0,0.441194]
[1728426930700,0.05373679,62229.0,62227.0,0.080394]
[1728426931295,0.05373679,62229.0,62227.0,0.081394]
[1728426931901,0.05373679,62229.0,62228.0,0.3608]
[1728426934007,0.05273679,62229.0,62228.0,0.3608]
[1728426934210,0.05373679,62229.0,62228.0,0.3658]
[1728426938211,0.13412879,62229.0,62228.0,0.005]
[1728426938413,0.49492879,62229.0,62228.0,0.005]
[1728426939612,0.13412879,62229.0,62228.0,0.005]
[1728426943317,0.13412879,62229.0,62228.0,0.3658]
[1728426943318,0.05373679,62229.0,62228.0,0.3658]
[1728426943505,0.05373679,62229.0,62228.0,0.446193]
[1728426943709,0.05373679,62229.0,62228.0,0.54880818]
[1728426944111,0.002,62229.0,62228.0,0.54880818]
[1728426945722,0.002,62229.0,62228.0,0.67139739]
[1728426949414,0.002,62229.0,62228.0,0.64522007]
[1728426950216,0.002,62229.0,62228.0,0.54880818]
[1728426950416,0.002,62229.0,62228.0,0.46841518]
[1728426953124,0.002,62229.0,62228.0,0.54878049]
[1728426954617,0.002,62229.0,62228.0,0.54878282]
[1728426955218,0.002,62229.0,62228.0,0.46841518]
[1728426955811,0.002,62229.0,62228.0,0.46879976]
[1728426956222,0.082392,62229.0,62228.0,0.46879976]
[1728426957426,0.202392,62229.0,62228.0,0.59158069]
[1728426958631,0.202392,62229.0,62228.0,0.71158069]
[1728426960728,0.122,62229.0,62228.0,0.71151601]
[1728426960920,0.0037,62237.0,62228.0,0.71035985]
[1728426961126,0.084077,62241.0,62236.0,0.561183]
[1728426961323,0.190377,62241.0,62239.0,0.12]
[1728426961516,0.190377,62241.0,62240.0,0.10297443]
[1728426962343,0.191377,62241.0,62240.0,0.10297443]
[1728426963024,0.190377,62241.0,62240.0,0.10697443]
[1728426963624,0.244377,62241.0,62240.0,0.004]
[1728426963925,0.244377,62241.0,62240.0,0.02472506]
[1728426965030,0.244377,62241.0,62240.0,0.02072506]
[1728426965236,0.244377,62241.0,62240.0,0.02472506]
[1728426965734,0.244377,62241.0,62240.0,0.02372506]
[1728426967229,0.244377,62241.0,62240.0,0.005]
[1728426968137,0.244377,62241.0,62240.0,0.006]
[1728426968528,0.244377,62241.0,62240.0,0.003]
[1728426969036,0.244377,62241.0,62240.0,0.002]
[1728426970937,0.244377,62241.0,62231.0,0.080388]
[1728426970938,0.605177,62241.0,62233.0,0.08027648]
[1728426971135,0.605177,62241.0,62231.0,0.08027648]
[1728426971136,0.19,62234.0,62231.0,0.08027648]
[1728426971327,0.19,62234.0,62229.0,0.08027648]
[1728426971328,0.08039,62231.0,62229.0,0.08027648]
[1728426971534,0.080391,62230.0,62229.0,0.08027648]
[1728426971733,0.080391,62230.0,62228.0,0.09840248]
[1728426971933,0.080391,62230.0,62228.0,0.08027648]
[1728426972137,0.19,62234.0,62228.0,0.08027648]
[1728426972437,0.080392,62229.0,62227.0,0.00241023]
[1728426972634,0.080393,62228.0,62227.0,0.00241023]
[1728426972831,0.200393,62228.0,62227.0,0.00241023]
[1728426973333,0.252693,62228.0,62227.0,0.00241023]
[1728426974232,0.307193,62228.0,62227.0,0.00241023]
[1728426974434,0.307193,62228.0,62227.0,0.00541023]
[1728426974731,0.308193,62228.0,62227.0,0.00541023]
[1728426974929,0.308193,62228.0,62227.0,0.00241023]
[1728426975136,0.308193,62228.0,62227.0,0.00541023]
[1728426975137,0.309193,62228.0,62227.0,0.00541023]
[1728426979640,0.309193,62228.0,62227.0,0.10840436]
[1728426984646,0.429193,62228.0,62227.0,0.10840436]
[1728426985145,0.429193,62228.0,62227.0,0.21136506]
[1728426987543,0.429193,62228.0,62227.0,0.17257638]
[1728426993641,0.429193,62228.0,62227.0,0.2367753]
[1728426993947,0.429193,62228.0,62221.0,0.06420139]
[1728426993948,0.080401,62222.0,62221.0,0.06420139]
[1728426994246,0.080408,62217.0,62216.0,0.09895184]
[1728426994446,0.320408,62217.0,62216.0,0.09895184]
[1728426995151,0.320408,62217.0,62216.0,0.17936084]
[1728426995345,0.12,62217.0,62216.0,0.29936084]
[1728426996545,0.121,62217.0,62216.0,0.30036084]
[1728426996747,0.122,62217.0,62216.0,0.30436084]
[1728427001664,0.122,62217.0,62216.0,0.40080676]
[1728427002256,0.122,62217.0,62216.0,0.40070849]
[1728427002555,0.122,62217.0,62216.0,0.30436084]
[1728427005546,0.002,62217.0,62216.0,0.30436084]
[1728427005752,0.080393,62229.0,62225.0,0.080397]
[1728427005950,0.180393,62229.0,62225.0,0.200397]
[1728427006152,0.1,62229.0,62225.0,0.080397]
[1728427006355,0.1,62229.0,62224.0,0.3608]
[1728427006356,0.080397,62225.0,62224.0,0.3608]
[1728427006656,0.190397,62225.0,62224.0,0.3608]
[1728427007652,0.190397,62225.0,62221.0,0.080401]
[1728427008646,0.190397,62225.0,62224.0,0.002]
[1728427008647,0.191397,62225.0,62224.0,0.002]
[1728427009047,0.192397,62225.0,62224.0,0.002]
[1728427009453,0.192397,62225.0,62221.0,0.085401]
[1728427009663,0.080401,62223.0,62222.0,0.09950573]
[1728427009961,0.190401,62223.0,62222.0,0.09950573]
[1728427010155,0.11,62223.0,62221.0,0.005]
[1728427010349,0.080401,62222.0,62221.0,0.002]
[1728427010549,0.551201,62222.0,62221.0,0.10157067]
[1728427011458,0.551201,62222.0,62221.0,0.09957067]
[1728427012059,0.552201,62222.0,62221.0,0.10157067]
[1728427013161,0.192401,62222.0,62221.0,0.10357067]
[1728427014855,0.192401,62222.0,62221.0,0.19990693]
[1728427015650,0.112,62222.0,62221.0,0.19990693]
[1728427016058,0.112,62222.0,62221.0,0.10357067]
[1728427016252,0.112,62222.0,62221.0,0.18397267]
[1728427016666,0.112,62222.0,62221.0,0.28034769]
[1728427017063,0.112,62222.0,62221.0,0.18397267]
[1728427017567,0.112,62222.0,62221.0,0.30245873]
[1728427021356,0.112,62222.0,62221.0,0.42245873]
[1728427024772,0.112,62222.0,62221.0,0.30397267]
[1728427024966,0.112,62222.0,62221.0,0.28474928]
[1728427025268,0.112,62222.0,62221.0,0.204402]
[1728427025674,0.232,62222.0,62221.0,0.004]
[1728427025864,0.312401,62222.0,62221.0,0.004]
[1728427026964,0.192401,62222.0,62221.0,0.004]
[1728427027168,0.278301,62222.0,62221.0,0.004]
[1728427030971,0.1979,62222.0,62217.0,0.08034728]
[1728427031164,0.200406,62218.0,62217.0,0.08034728]
[1728427031365,0.300406,62218.0,62217.0,0.08034728]
[1728427031973,0.300406,62218.0,62217.0,0.19800432]
[1728427032171,0.300406,62218.0,62217.0,0.20000432]
[1728427032976,0.300406,62218.0,62217.0,0.10359313]
[1728427033778,0.301406,62218.0,62217.0,0.10159313]
[1728427034476,0.301406,62218.0,62217.0,0.09959313]
[1728427034477,0.302406,62218.0,62217.0,0.09959313]
[1728427034878,0.222,62218.0,62217.0,0.09959746]
[1728427035180,0.302406,62218.0,62217.0,0.09959746]
[1728427035571,0.32063872,62218.0,62217.0,0.09959746]
[1728427035879,0.302406,62218.0,62217.0,0.09959746]
[1728427039974,0.222,62218.0,62216.0,0.0481858]
[1728427040175,0.080408,62217.0,62216.0,0.0481858]
[1728427040376,0.180408,62217.0,62216.0,0.0481858]
[1728427041683,0.181408,62217.0,62216.0,0.0481858]
[1728427043282,0.182408,62217.0,62216.0,0.0481858]
[1728427047289,0.181408,62217.0,62216.0,0.0481858]
[1728427047683,0.182408,62217.0,62216.0,0.0481858]
[1728427050686,0.182408,62217.0,62215.0,0.080409]
[1728427050687,0.080409,62216.0,62215.0,0.080409]
[1728427050877,0.200409,62216.0,62215.0,0.080409]